bitfinex/quotes_BTCUSD_20241009
["timestamp","ask_amount","ask_price","bid_price","bid_amount"]
[1728492970126,0.80020126,61812.0,61811.0,0.00082]
[1728492970793,0.63778063,61812.0,61811.0,0.00082]
[1728492972348,0.18978,61812.0,61811.0,0.00082]
[1728492974129,0.21513931,61812.0,61811.0,0.00082]
[1728492974820,0.20113931,61812.0,61811.0,0.00082]
[1728492975059,0.18713931,61812.0,61811.0,0.00082]
[1728492975269,0.21413931,61812.0,61811.0,0.00082]
[1728492975702,0.3883023,61812.0,61811.0,0.00082]
[1728492975953,0.3743023,61812.0,61811.0,0.00082]
[1728492976424,0.3783023,61812.0,61811.0,0.00082]
[1728492977300,0.3833023,61812.0,61811.0,0.00082]
[1728492977505,0.19613931,61812.0,61811.0,0.00082]
[1728492977711,0.19113931,61812.0,61811.0,0.00082]
[1728492977931,0.19913931,61812.0,61811.0,0.00082]
[1728492978146,0.19513931,61812.0,61811.0,0.00082]
[1728492978588,0.20113931,61812.0,61811.0,0.00082]
[1728492979944,0.17578,61812.0,61811.0,0.00082]
[1728492984315,0.03935836,61812.0,61811.0,0.00136939]
[1728492984535,0.20113836,61812.0,61811.0,0.00136939]
[1728492986996,0.03935836,61812.0,61811.0,0.00136939]
[1728492987235,0.014,61812.0,61811.0,0.53419003]
[1728492987414,0.014,61812.0,61811.0,0.63088522]
[1728492988237,0.24236353,61824.0,61823.0,0.00054939]
[1728492988447,0.24236353,61824.0,61823.0,0.20574939]
[1728492988660,0.72755153,61832.0,61831.0,0.00054939]
[1728492988873,0.485188,61832.0,61831.0,0.07864939]
[1728492989493,0.00164,61833.0,61831.0,0.07864939]
[1728492989703,0.00164,61833.0,61832.0,0.13088372]
[1728492989924,0.00164,61833.0,61832.0,0.52591057]
[1728492990140,0.00164,61833.0,61832.0,0.5276765]
[1728492991827,0.00264,61833.0,61832.0,0.5286765]
[1728492992254,0.00364,61833.0,61832.0,0.5296765]
[1728492997062,0.00364,61833.0,61832.0,0.45721503]
[1728492999565,0.00364,61833.0,61832.0,0.12964939]
[1728492999772,0.165365,61833.0,61832.0,0.00254939]
[1728492999985,0.00364,61833.0,61832.0,0.00254939]
[1728493000587,0.00264,61833.0,61832.0,0.00236939]
[1728493000796,0.00264,61833.0,61832.0,0.00336939]
[1728493000797,0.00364,61833.0,61832.0,0.00336939]
[1728493001038,0.00264,61833.0,61832.0,0.00236939]
[1728493001245,0.00164,61833.0,61832.0,0.00136939]
[1728493001447,0.00264,61833.0,61832.0,0.00236939]
[1728493001646,0.00364,61833.0,61832.0,0.00336939]
[1728493002345,0.00364,61833.0,61832.0,0.38697458]
[1728493002985,0.00364,61833.0,61832.0,0.28939739]
[1728493003217,0.00364,61833.0,61832.0,0.29188179]
[1728493003431,0.00264,61833.0,61832.0,0.45171943]
[1728493003647,0.00264,61833.0,61832.0,0.44923503]
[1728493003862,0.00364,61833.0,61832.0,0.45423503]
[1728493004278,0.00264,61833.0,61832.0,0.44923503]
[1728493004481,0.00164,61833.0,61832.0,0.45423503]
[1728493004681,0.00364,61833.0,61832.0,0.45923503]
[1728493004908,0.00364,61833.0,61832.0,0.46423503]
[1728493005108,0.00264,61833.0,61832.0,0.62004164]
[1728493005318,0.00364,61833.0,61832.0,0.46423503]
[1728493007221,0.00364,61833.0,61832.0,0.53993503]
[1728493008164,0.00364,61833.0,61832.0,0.54704972]
[1728493010506,0.00364,61833.0,61832.0,0.67004972]
[1728493010947,0.00364,61833.0,61832.0,0.67204972]
[1728493011151,0.00364,61833.0,61832.0,0.83285633]
[1728493011598,0.00364,61833.0,61832.0,0.83085633]
[1728493011781,0.00364,61833.0,61832.0,0.83285633]
[1728493012846,0.00364,61833.0,61832.0,0.83085633]
[1728493014962,0.00364,61833.0,61832.0,0.82485633]
[1728493014963,0.00264,61833.0,61832.0,0.82485633]
[1728493015725,0.00264,61833.0,61832.0,0.81985633]
[1728493015726,0.00164,61833.0,61832.0,0.81985633]
[1728493015936,0.00264,61833.0,61832.0,0.82485633]
[1728493016146,0.00264,61833.0,61832.0,0.66404972]
[1728493016379,0.00364,61833.0,61832.0,0.57604972]
[1728493017616,0.00364,61833.0,61832.0,0.74021271]
[1728493018562,0.00364,61833.0,61832.0,0.55304972]
[1728493018791,0.00364,61833.0,61832.0,0.57272892]
[1728493020146,0.00364,61833.0,61832.0,0.55304972]
[1728493035669,0.00364,61833.0,61832.0,0.76321271]
[1728493035887,0.00364,61833.0,61832.0,0.81161684]
[1728493036335,0.00364,61833.0,61832.0,0.76321271]
[1728493040622,0.00364,61833.0,61832.0,0.81172671]
[1728493040856,0.00364,61833.0,61832.0,0.97253332]
[1728493041080,0.00364,61833.0,61832.0,0.92401932]
[1728493041822,0.00364,61833.0,61832.0,0.93920198]
[1728493042099,0.00364,61833.0,61832.0,1.01180818]
[1728493042353,0.00264,61833.0,61832.0,0.93420198]
[1728493042835,0.00164,61833.0,61832.0,1.14521231]
[1728493043084,0.00264,61833.0,61832.0,1.01801932]
[1728493043343,0.00264,61833.0,61832.0,1.02801932]
[1728493043344,0.00364,61833.0,61832.0,1.02801932]
[1728493043589,0.24318353,61845.0,61843.0,0.16724839]
[1728493043590,0.24236353,61844.0,61843.0,0.16724839]
[1728493043833,0.24236353,61844.0,61843.0,0.85625224]
[1728493044044,0.00082,61845.0,61844.0,0.19024639]
[1728493044259,0.00082,61845.0,61844.0,0.47517968]
[1728493044947,0.00082,61845.0,61844.0,0.47516605]
[1728493045161,0.00082,61845.0,61844.0,0.42668403]
[1728493045404,0.00082,61845.0,61844.0,0.48415415]
[1728493045625,0.00082,61845.0,61844.0,0.62009337]
[1728493046771,0.00082,61845.0,61844.0,0.48415415]
[1728493047703,0.00082,61845.0,61844.0,0.43568403]
[1728493047927,0.00082,61845.0,61844.0,0.48415415]
[1728493048181,0.00082,61845.0,61844.0,0.43568403]
[1728493048401,0.00082,61845.0,61844.0,0.48412878]
[1728493048622,0.00082,61845.0,61844.0,0.7577087]
[1728493048837,0.00082,61845.0,61844.0,0.80926395]
[1728493049053,0.00082,61845.0,61844.0,0.88398594]
[1728493049531,0.00082,61845.0,61844.0,0.81126395]
[1728493049753,0.00082,61845.0,61844.0,0.9082266]
[1728493049998,0.00082,61845.0,61844.0,0.93233898]
[1728493050218,0.00082,61855.0,61854.0,0.00554939]
[1728493050449,0.00082,61855.0,61854.0,0.72312102]
[1728493050673,0.00082,61855.0,61854.0,0.79494882]
[1728493051374,0.00082,61855.0,61854.0,0.89494882]
[1728493051594,0.00082,61855.0,61854.0,0.90394882]
[1728493051854,0.00082,61855.0,61854.0,0.90194882]
[1728493052057,0.00082,61855.0,61854.0,0.90794882]
[1728493052288,0.00082,61855.0,61854.0,0.90094882]
[1728493052516,0.00082,61855.0,61854.0,0.90213135]
[1728493052760,0.00082,61855.0,61854.0,0.91513135]
[1728493053251,0.00082,61855.0,61854.0,0.72796836]
[1728493053973,0.00082,61855.0,61854.0,0.72096836]
[1728493054433,0.00082,61855.0,61854.0,0.71896836]
[1728493054657,0.00082,61855.0,61854.0,0.90613135]
[1728493055088,0.00082,61855.0,61854.0,0.90713135]
[1728493055316,0.00082,61855.0,61854.0,0.91213135]
[1728493056231,0.00082,61855.0,61854.0,0.91413135]
[1728493056917,0.00082,61855.0,61854.0,0.91213135]
[1728493057565,0.00082,61855.0,61854.0,0.91413135]
[1728493057790,0.00082,61855.0,61854.0,0.91213135]
[1728493062699,0.00082,61855.0,61854.0,0.42564056]
[1728493062927,0.00082,61855.0,61854.0,0.34524056]
[1728493063192,0.00082,61855.0,61854.0,0.01773192]
[1728493063462,0.00082,61855.0,61854.0,0.01273192]
[1728493063712,0.00082,61855.0,61854.0,0.18240292]
[1728493063970,0.00082,61855.0,61854.0,0.17022039]
[1728493064210,0.00082,61855.0,61854.0,0.16222039]
[1728493064449,0.00082,61855.0,61854.0,0.16522039]
[1728493064685,0.00082,61855.0,61854.0,0.17022039]
[1728493065341,0.02615715,61855.0,61854.0,0.17022039]
[1728493066099,0.02615715,61855.0,61854.0,0.00854939]
[1728493066362,0.02615715,61855.0,61854.0,0.16522039]
[1728493066599,0.02615715,61855.0,61854.0,0.32821703]
[1728493066845,0.02615715,61855.0,61854.0,0.32605803]
[1728493067552,0.02615715,61855.0,61854.0,0.32905803]
[1728493069293,0.00082,61855.0,61854.0,0.32905803]
[1728493070642,0.00082,61855.0,61854.0,0.00654939]
[1728493070880,0.162488,61855.0,61854.0,0.00654939]
[1728493071109,0.18157181,61855.0,61854.0,0.00654939]
[1728493071345,0.18182156,61855.0,61854.0,0.00654939]
[1728493071581,0.18182156,61855.0,61854.0,0.003]
[1728493071582,0.162488,61855.0,61854.0,0.003]
[1728493071808,0.161673,61853.0,61852.0,0.00054939]
[1728493072479,0.18701363,61853.0,61852.0,0.00054939]
[1728493072719,0.20634719,61853.0,61852.0,0.00054939]
[1728493072948,0.23183718,61853.0,61852.0,0.00054939]
[1728493073195,0.39351018,61853.0,61852.0,0.00054939]
[1728493073877,0.161676,61852.0,61851.0,0.00054939]
[1728493074100,0.55518518,61853.0,61846.0,0.00054939]
[1728493074101,0.323364,61850.0,61846.0,0.00054939]
[1728493074330,0.161689,61847.0,61846.0,0.00054939]
[1728493074555,0.161691,61846.0,61845.0,0.00136939]
[1728493074776,0.225591,61846.0,61845.0,0.00082]
[1728493075001,0.24492456,61846.0,61845.0,0.00082]
[1728493075252,0.27026884,61846.0,61845.0,0.00082]
[1728493075688,0.27126884,61846.0,61845.0,0.00082]
[1728493076358,0.27135469,61846.0,61845.0,0.00082]
[1728493076598,0.27635469,61846.0,61845.0,0.00082]
[1728493077064,0.27135469,61846.0,61845.0,0.00082]
[1728493077281,0.27235469,61846.0,61845.0,0.00182]
[1728493077948,0.27935469,61846.0,61845.0,0.00282]
[1728493079373,0.25401041,61846.0,61845.0,0.00282]
[1728493079622,0.24701041,61846.0,61845.0,0.00182]
[1728493079857,0.25201041,61846.0,61845.0,0.00282]
[1728493080318,0.25201041,61846.0,61845.0,0.00082]
[1728493080319,0.24501041,61846.0,61845.0,0.00082]
[1728493080568,0.25001041,61846.0,61845.0,0.00182]
[1728493080800,0.25101041,61846.0,61845.0,0.00182]
[1728493083982,0.21245552,61846.0,61845.0,0.00182]
[1728493087837,0.21245552,61846.0,61845.0,0.00236939]
[1728493087838,0.19303611,61846.0,61845.0,0.00236939]
[1728493088771,0.18803611,61846.0,61845.0,0.00136939]
[1728493089014,0.18703611,61846.0,61845.0,0.00136939]
[1728493089248,0.19303611,61846.0,61845.0,0.00136939]
[1728493089469,0.167691,61846.0,61845.0,0.00136939]
[1728493089682,0.162691,61846.0,61845.0,0.00136939]
[1728493089892,0.166691,61846.0,61845.0,0.00136939]
[1728493090238,0.165691,61846.0,61845.0,0.00136939]
[1728493090459,0.162488,61855.0,61854.0,0.00054939]
[1728493090691,0.00082,61855.0,61854.0,0.09614939]
[1728493091372,0.162488,61855.0,61854.0,0.09614939]
[1728493091830,0.163488,61855.0,61854.0,0.09714939]
[1728493092332,0.169488,61855.0,61854.0,0.09814939]
[1728493092803,0.169488,61855.0,61854.0,0.09714939]
[1728493092804,0.164488,61855.0,61854.0,0.09714939]
[1728493093027,0.165488,61855.0,61854.0,0.09714939]
[1728493093944,0.19082688,61855.0,61854.0,0.09714939]
[1728493094162,0.02915888,61855.0,61854.0,0.09714939]
[1728493094398,0.19082688,61855.0,61854.0,0.09714939]
[1728493095778,0.02915888,61855.0,61854.0,0.17544939]
[1728493097105,0.02915888,61855.0,61854.0,0.37283654]
[1728493097324,0.02915888,61855.0,61854.0,0.37017935]
[1728493098000,0.02915888,61855.0,61854.0,0.36917935]
[1728493098001,0.02615888,61855.0,61854.0,0.36917935]
[1728493098450,0.00282,61855.0,61854.0,0.36917935]
[1728493098667,0.00182,61855.0,61854.0,0.36917935]
[1728493098901,0.00082,61855.0,61854.0,0.36917935]
[1728493099133,0.00082,61855.0,61854.0,0.37217935]
[1728493099346,0.00082,61855.0,61854.0,0.53301699]
[1728493099573,0.00082,61855.0,61854.0,0.53501699]
[1728493102734,0.02615632,61855.0,61854.0,0.53501699]
[1728493104099,0.02615632,61855.0,61854.0,0.50195803]
[1728493106031,0.02615632,61855.0,61854.0,0.17944939]
[1728493106272,0.20699589,61855.0,61854.0,0.17944939]
[1728493106763,0.20699589,61855.0,61854.0,0.08384939]
[1728493106990,0.04532789,61855.0,61854.0,0.08384939]
[1728493107198,0.04532789,61855.0,61854.0,0.24552039]
[1728493107428,0.02615632,61855.0,61854.0,0.08384939]
[1728493107671,0.02615632,61855.0,61854.0,0.24552039]
[1728493107896,0.02615632,61855.0,61854.0,0.50315803]
[1728493109299,0.00082,61855.0,61854.0,0.50315803]
[1728493110486,0.00082,61855.0,61854.0,0.34148703]
[1728493111183,0.00082,61855.0,61854.0,0.50315803]
[1728493112391,0.02615708,61855.0,61854.0,0.50315803]
[1728493114349,0.02615708,61855.0,61854.0,0.55874575]
[1728493115861,0.02615708,61855.0,61854.0,0.50315803]
[1728493120769,0.02615708,61855.0,61854.0,0.34148703]
[1728493122918,0.00082,61855.0,61854.0,0.34148703]
[1728493123672,0.00082,61855.0,61854.0,0.50315803]
[1728493125776,0.02615626,61855.0,61854.0,0.50315803]
[1728493126008,0.02615626,61855.0,61854.0,0.34148703]
[1728493127155,0.02615626,61855.0,61854.0,0.50315803]
[1728493129337,0.00082,61855.0,61854.0,0.50315803]
[1728493132495,0.02615739,61855.0,61854.0,0.50315803]
[1728493139219,0.00082,61855.0,61854.0,0.50315803]
[1728493141918,0.00082,61855.0,61854.0,0.66396464]
[1728493142359,0.02615518,61855.0,61854.0,0.66396464]
[1728493142788,0.02615518,61855.0,61854.0,0.65896464]
[1728493143012,0.02615518,61855.0,61854.0,0.66596464]
[1728493143236,0.02615518,61855.0,61854.0,0.51215803]
[1728493143480,0.20728711,61855.0,61854.0,0.18964939]
[1728493143720,0.04561911,61855.0,61854.0,0.18964939]
[1728493146367,0.20728711,61855.0,61854.0,0.18964939]
[1728493146582,0.20728711,61855.0,61854.0,0.01454939]
[1728493147215,0.20728711,61855.0,61854.0,0.00754939]
[1728493147417,0.20728711,61855.0,61854.0,0.00054939]
[1728493147628,0.20728711,61855.0,61854.0,0.00154939]
[1728493148884,0.20728711,61855.0,61854.0,0.00054939]
[1728493149310,0.18195193,61855.0,61854.0,0.00054939]
[1728493152360,0.20729042,61855.0,61854.0,0.00054939]
[1728493153028,0.04562242,61855.0,61854.0,0.00054939]
[1728493153251,0.02615849,61855.0,61854.0,0.66159327]
[1728493154164,0.02615849,61855.0,61854.0,0.62757227]
[1728493155869,0.02615849,61855.0,61854.0,0.63157227]
[1728493156101,0.02615849,61855.0,61854.0,0.62757227]
[1728493156309,0.02615849,61855.0,61854.0,0.63257227]
[1728493156548,0.00082,61855.0,61854.0,0.66557227]
[1728493156763,0.00082,61855.0,61854.0,0.88918837]
[1728493156968,0.00082,61855.0,61854.0,0.89718837]
[1728493157188,0.00082,61855.0,61854.0,0.90616409]
[1728493157422,0.00082,61855.0,61854.0,0.89716409]
[1728493157917,0.00082,61855.0,61854.0,0.82437888]
[1728493158147,0.00082,61855.0,61854.0,0.92142583]
[1728493158372,0.00082,61855.0,61854.0,0.91342583]
[1728493158600,0.00082,61855.0,61854.0,0.92342583]
[1728493158840,0.00082,61855.0,61854.0,0.99661536]
[1728493159076,0.00082,61855.0,61854.0,0.97761536]
[1728493159302,0.00082,61855.0,61854.0,0.89656841]
[1728493159548,0.00082,61855.0,61854.0,0.9765114]
[1728493160029,0.00082,61855.0,61854.0,0.90375671]
[1728493160262,0.00082,61855.0,61854.0,0.9765114]
[1728493162313,0.00082,61855.0,61854.0,0.9036384]
[1728493162567,0.00082,61855.0,61854.0,0.96839309]
[1728493162789,0.00082,61855.0,61854.0,0.8876384]
[1728493163009,0.00082,61855.0,61854.0,0.8936384]
[1728493163237,0.00082,61855.0,61854.0,0.8906384]
[1728493163454,0.00082,61855.0,61854.0,0.8986384]
[1728493163686,0.00082,61855.0,61854.0,0.8956384]
[1728493163896,0.00082,61855.0,61854.0,0.96836461]
[1728493164985,0.00082,61855.0,61854.0,0.97636461]
[1728493165475,0.00082,61855.0,61854.0,0.9036384]
[1728493165927,0.00082,61855.0,61854.0,0.97635329]
[1728493166802,0.00082,61855.0,61854.0,0.9036384]
[1728493167013,0.00082,61855.0,61854.0,0.97606207]
[1728493168783,0.00082,61855.0,61854.0,0.96806207]
[1728493169026,0.00082,61855.0,61854.0,0.97406207]
[1728493169254,0.00082,61855.0,61854.0,0.96606207]
[1728493169682,0.00082,61855.0,61854.0,0.97206207]
[1728493169901,0.00082,61855.0,61854.0,0.96006207]
[1728493170122,0.00082,61855.0,61854.0,0.81525546]
[1728493171677,0.00082,61855.0,61854.0,0.81523735]
[1728493172886,0.50082,61855.0,61854.0,0.81523735]
[1728493177077,0.50082,61855.0,61854.0,0.74254481]
[1728493177516,0.50082,61855.0,61854.0,0.81523735]
[1728493177968,0.50082,61855.0,61854.0,0.74254481]
[1728493178855,0.50082,61855.0,61854.0,0.81523735]
[1728493179288,0.50082,61855.0,61854.0,0.74254481]
[1728493180549,0.50082,61855.0,61854.0,0.67830493]
[1728493183951,0.50082,61855.0,61854.0,0.67912493]
[1728493185341,0.50082,61855.0,61854.0,0.53346104]
[1728493185571,0.50082,61855.0,61854.0,0.76863627]
[1728493185788,0.50082,61855.0,61854.0,0.64893663]
[1728493186460,0.50082,61855.0,61854.0,0.70561519]
[1728493186678,0.50082,61855.0,61854.0,0.63293663]
[1728493186894,0.50082,61855.0,61854.0,0.7043868]
[1728493187126,0.50082,61855.0,61854.0,0.65593663]
[1728493187310,0.50082,61855.0,61854.0,0.73661519]
[1728493187537,0.50082,61855.0,61854.0,0.71238836]
[1728493187758,0.52026892,61855.0,61854.0,0.66393663]
[1728493187984,0.50082,61855.0,61854.0,0.66393663]
[1728493188217,0.50082,61855.0,61854.0,0.67193663]
[1728493189552,0.50082,61855.0,61854.0,0.72038836]
[1728493190414,0.50082,61855.0,61854.0,0.67193663]
[1728493190863,0.50082,61855.0,61854.0,0.72039276]
[1728493191093,0.50082,61855.0,61854.0,0.67193663]
[1728493191332,0.49996893,61855.0,61854.0,0.67193663]
[1728493191802,0.49996893,61855.0,61854.0,0.83274324]
[1728493192498,0.52530445,61855.0,61854.0,0.83274324]
[1728493194470,0.52530445,61855.0,61854.0,0.67193663]
[1728493194918,0.52530445,61855.0,61854.0,0.44687274]
[1728493196772,0.52694445,61855.0,61854.0,0.44687274]
[1728493198419,0.52694445,61855.0,61854.0,0.4953579]
[1728493200789,0.50160893,61855.0,61854.0,0.4953579]
[1728493201704,0.50160893,61855.0,61854.0,0.3929579]
[1728493203071,0.50160893,61855.0,61854.0,0.39299968]
[1728493203493,0.50160893,61855.0,61854.0,0.0169641]
[1728493203924,0.72717693,61855.0,61854.0,0.0169641]
[1728493204377,0.72717693,61855.0,61845.0,0.00082]
[1728493204378,0.1,61854.0,61845.0,0.00082]
[1728493204599,0.28435489,61846.0,61845.0,0.00082]
[1728493204841,0.4364178,61846.0,61845.0,0.00082]
[1728493205076,0.45588082,61846.0,61845.0,0.00082]
[1728493205517,0.51491791,61846.0,61845.0,0.00182]
[1728493205725,0.51591791,61846.0,61845.0,0.00182]
[1728493206176,0.56591822,61846.0,61845.0,0.00182]
[1728493206403,0.51591791,61846.0,61845.0,0.00182]
[1728493207061,0.51591791,61846.0,61845.0,0.00082]
[1728493207277,0.52591791,61846.0,61845.0,0.00182]
[1728493207535,0.52491791,61846.0,61845.0,0.00182]
[1728493207769,0.53491791,61846.0,61845.0,0.00282]
[1728493208932,0.6854196,61846.0,61845.0,0.00282]
[1728493209595,0.7107661,61846.0,61845.0,0.00282]
[1728493212252,0.55826441,61846.0,61845.0,0.00282]
[1728493213152,0.53291791,61846.0,61845.0,0.00282]
[1728493216210,0.55826449,61846.0,61845.0,0.00282]
[1728493217333,0.161702,61842.0,61841.0,0.05951573]
[1728493217568,0.18116626,61842.0,61841.0,0.05951573]
[1728493218433,0.18116626,61842.0,61841.0,0.06151573]
[1728493218434,0.19816626,61842.0,61841.0,0.06151573]
[1728493219312,0.34839103,61842.0,61841.0,0.06151573]
[1728493219981,0.50922867,61842.0,61841.0,0.06151573]
[1728493220217,0.55442867,61842.0,61841.0,0.06151573]
[1728493220669,0.71842867,61842.0,61841.0,0.06233573]
[1728493221116,0.8591714,61842.0,61841.0,0.06233573]
[1728493221325,0.71842867,61842.0,61841.0,0.06233573]
[1728493221551,0.84783867,61842.0,61841.0,0.06233573]
[1728493221776,0.85269457,61842.0,61841.0,0.06233573]
[1728493222001,0.85269457,61842.0,61841.0,0.0504447]
[1728493222448,0.99372465,61842.0,61841.0,0.0494447]
[1728493222673,0.84469457,61842.0,61841.0,0.0494447]
[1728493223429,0.83127403,61842.0,61841.0,0.0494447]
[1728493223909,0.87062534,61842.0,61841.0,0.0504447]
[1728493224388,0.86162534,61842.0,61841.0,0.0494447]
[1728493224623,0.87562534,61842.0,61841.0,0.0504447]
[1728493225335,0.74621534,61842.0,61841.0,0.0504447]
[1728493225567,2.27381234,61842.0,61841.0,0.0504447]
[1728493225807,2.12335934,61842.0,61841.0,0.0504447]
[1728493226713,1.67392234,61842.0,61841.0,0.0504447]
[1728493226929,1.65618834,61842.0,61841.0,0.0504447]
[1728493227176,1.20117334,61842.0,61841.0,0.0504447]
[1728493228067,1.06983134,61842.0,61841.0,0.0504447]
[1728493228536,0.92160657,61842.0,61841.0,0.0504447]
[1728493228772,0.56188299,61842.0,61841.0,0.0504447]
[1728493229771,0.58134735,61842.0,61841.0,0.0504447]
[1728493232190,0.60669661,61842.0,61841.0,0.0504447]
[1728493237640,0.65661958,61842.0,61841.0,0.0504447]
[1728493239320,0.63127032,61842.0,61841.0,0.0504447]
[1728493241102,0.161725,61833.0,61832.0,0.00082]
[1728493241343,0.5971495,61833.0,61832.0,0.00082]
[1728493241588,0.61661387,61833.0,61832.0,0.00082]
[1728493242294,0.74344865,61833.0,61832.0,0.00082]
[1728493242504,0.59204271,61833.0,61832.0,0.00082]
[1728493242714,0.64207912,61833.0,61832.0,0.00082]
[1728493242923,0.59204271,61833.0,61832.0,0.00082]
[1728493243345,0.46937882,61833.0,61832.0,0.00082]
[1728493243568,0.65007351,61833.0,61832.0,0.00182]
[1728493243786,0.60004271,61833.0,61832.0,0.00182]
[1728493244211,0.60904271,61833.0,61832.0,0.00282]
[1728493244427,0.73422037,61833.0,61832.0,0.00282]
[1728493245352,0.74221177,61833.0,61832.0,0.00282]
[1728493246499,0.79226528,61833.0,61832.0,0.00282]
[1728493247214,0.66708762,61833.0,61832.0,0.00282]
[1728493247469,0.66708762,61833.0,61832.0,0.07952]
[1728493247470,0.35413032,61833.0,61832.0,0.07952]
[1728493247701,0.30407681,61833.0,61832.0,0.17722]
[1728493247926,0.32354118,61833.0,61832.0,0.17722]
[1728493249286,0.32554118,61833.0,61832.0,0.17722]
[1728493249504,0.30018937,61833.0,61832.0,0.17722]
[1728493249940,0.4071625,61833.0,61832.0,0.17722]
[1728493250175,0.4071625,61833.0,61832.0,0.00282]
[1728493250610,0.29818937,61833.0,61832.0,0.00282]
[1728493250835,0.34828004,61833.0,61832.0,0.00282]
[1728493251052,0.35028004,61833.0,61832.0,0.00282]
[1728493252652,0.37563137,61833.0,61832.0,0.00282]
[1728493255882,0.37563137,61833.0,61832.0,0.00282]
[1728493256580,0.37363137,61833.0,61832.0,0.00282]
[1728493257222,0.354167,61833.0,61832.0,0.17802]
[1728493257444,0.49629527,61833.0,61832.0,0.17802]
[1728493258737,0.5443728,61833.0,61832.0,0.17802]
[1728493259176,0.5463728,61833.0,61832.0,0.17802]
[1728493259398,0.52102147,61833.0,61832.0,0.17802]
[1728493260128,0.66465794,61833.0,61832.0,0.00282]
[1728493260994,0.82749558,61833.0,61832.0,0.00282]
[1728493261207,0.89961189,61833.0,61832.0,0.00282]
[1728493261434,0.77941805,61833.0,61832.0,0.00282]
[1728493261744,0.2685839,61832.0,61831.0,0.0324631]
[1728493261943,2.10196072,61832.0,61831.0,1e-07]
[1728493262157,0.63946696,61832.0,61831.0,1e-07]
[1728493262598,0.82677714,61832.0,61831.0,1e-07]
[1728493263273,0.81172866,61832.0,61831.0,1e-07]
[1728493263488,0.82677029,61832.0,61831.0,1e-07]
[1728493263710,0.82677029,61832.0,61820.0,0.24236353]
[1728493263711,0.45106718,61821.0,61820.0,0.24236353]
[1728493263917,0.67703712,61821.0,61820.0,0.24236353]
[1728493264136,0.6965015,61821.0,61820.0,0.24236353]
[1728493264361,0.163773,61815.0,61814.0,0.0925]
[1728493264605,0.36412481,61815.0,61814.0,0.0925]
[1728493264870,0.38358919,61815.0,61814.0,0.0925]
[1728493265334,0.43148839,61815.0,61814.0,0.0925]
[1728493265614,0.16178,61812.0,61811.0,0.00082]
[1728493265851,0.17882163,61812.0,61811.0,0.00082]
[1728493266085,0.19628601,61812.0,61811.0,0.00082]
[1728493266312,0.18124438,61812.0,61811.0,0.00082]
[1728493266555,0.34190054,61812.0,61811.0,0.00082]
[1728493266783,0.19626407,61812.0,61811.0,0.00082]
[1728493267260,0.20026407,61812.0,61811.0,0.00082]
[1728493267755,0.20326407,61812.0,61811.0,0.00082]
[1728493268014,0.20326407,61812.0,61811.0,0.09112]
[1728493268015,0.18379969,61812.0,61811.0,0.09112]
[1728493268264,0.18379969,61812.0,61811.0,0.17052]
[1728493269000,0.32531965,61812.0,61811.0,0.17052]
[1728493269234,0.18379969,61812.0,61811.0,0.17052]
[1728493269511,0.18378669,61812.0,61811.0,0.17052]
[1728493272504,0.16878,61812.0,61811.0,0.17052]
[1728493272745,0.20913895,61812.0,61811.0,0.17052]
[1728493278769,0.20912852,61812.0,61811.0,0.17052]
[1728493279540,0.18376984,61812.0,61811.0,0.17052]
[1728493280527,0.18376984,61812.0,61811.0,0.19052]
[1728493281932,0.18377335,61812.0,61811.0,0.19052]
[1728493282861,0.20913168,61812.0,61811.0,0.19052]
[1728493286479,0.20940169,61812.0,61811.0,0.19052]
[1728493286646,0.20913168,61812.0,61811.0,0.1906641]
[1728493287501,0.20213168,61812.0,61811.0,0.1906641]
[1728493287716,0.20413168,61812.0,61811.0,0.1906641]
[1728493289518,0.17977335,61812.0,61811.0,0.1906641]
[1728493290651,0.19878253,61812.0,61811.0,0.1906641]
[1728493291102,0.18378918,61812.0,61811.0,0.1906641]
[1728493291331,0.19881262,61812.0,61811.0,0.1906641]
[1728493291549,0.19890543,61812.0,61811.0,0.1906641]
[1728493292250,0.19890543,61812.0,61811.0,0.02082]
[1728493292526,0.51174238,61812.0,61811.0,0.02082]
[1728493292725,0.63302486,61812.0,61811.0,0.02082]
[1728493292935,0.65600575,61812.0,61811.0,0.02082]
[1728493293157,0.65400575,61812.0,61811.0,0.02082]
[1728493293414,0.54510132,61812.0,61811.0,0.02082]
[1728493293626,0.54711529,61812.0,61811.0,0.02082]
[1728493293844,0.54211529,61812.0,61811.0,0.02082]
[1728493294050,0.56511529,61812.0,61811.0,0.02082]
[1728493294703,0.66102912,61812.0,61811.0,0.02082]
[1728493294929,0.68501972,61812.0,61811.0,0.02082]
[1728493296241,0.68987562,61812.0,61811.0,0.02082]
[1728493296685,0.6898493,61812.0,61811.0,0.02082]
[1728493296919,0.6778493,61812.0,61811.0,0.02082]
[1728493297133,0.68183533,61812.0,61811.0,0.02082]
[1728493297347,0.55095722,61812.0,61811.0,0.02082]
[1728493297562,0.56495722,61812.0,61811.0,0.02082]
[1728493297977,0.56695722,61812.0,61811.0,0.02082]
[1728493298212,0.68683533,61812.0,61811.0,0.02082]
[1728493298421,0.56695722,61812.0,61811.0,0.02082]
[1728493298626,0.68683533,61812.0,61811.0,0.02082]
[1728493299042,0.68483533,61812.0,61811.0,0.02082]
[1728493299460,0.65947639,61812.0,61811.0,0.02082]
[1728493299667,0.66147639,61812.0,61811.0,0.02082]
[1728493299922,0.54159828,61812.0,61811.0,0.02082]
[1728493300581,0.52657484,61812.0,61811.0,0.02082]
[1728493300794,0.54158281,61812.0,61811.0,0.02082]
[1728493302586,0.56694473,61812.0,61811.0,0.02082]
[1728493303258,0.54584274,61812.0,61811.0,0.02082]
[1728493303524,0.66091583,61812.0,61811.0,0.02082]
[1728493303752,0.52597887,61812.0,61811.0,0.02082]
[1728493303963,0.52597887,61812.0,61811.0,0.10412]
[1728493303964,0.54098433,61812.0,61811.0,0.10412]
[1728493305457,0.5601278,61812.0,61811.0,0.10412]
[1728493306993,0.54512234,61812.0,61811.0,0.10412]
[1728493307213,0.56012695,61812.0,61811.0,0.10412]
[1728493307697,0.28014584,61812.0,61811.0,0.10412]
[1728493307905,0.23014653,61812.0,61811.0,0.10412]
[1728493308762,0.46548759,61812.0,61811.0,0.10412]
[1728493308970,0.41745671,61812.0,61811.0,0.10412]
[1728493309400,0.39209479,61812.0,61811.0,0.10412]
[1728493310743,0.44012567,61812.0,61811.0,0.10412]
[1728493310972,0.20478461,61812.0,61811.0,0.10412]
[1728493312652,0.45048038,61812.0,61811.0,0.10412]